fUST/lending_fUST_20240118
["ID","MTS","AMOUNT","RATE_DAILY","PERIOD"]
[312058090,1705588242333,-500.0,0.00030999,2]
[312058091,1705588242343,-500.0,0.00030999,2]
[312058092,1705588242352,-97008.73081987,0.00031,4]
[312058093,1705588242363,-238.04250494,0.00031,2]
[312058094,1705588242372,-500.0,0.00031095,2]
[312058095,1705588242382,-160.81104418,0.00031106,2]
[312058096,1705588242392,-637.34140239,0.00031232,2]
[312058097,1705588242402,-150.0,0.00031272,2]
[312058098,1705588242412,-200.0,0.00031555,15]
[312058099,1705588242422,-200.0,0.00031555,15]
[312058100,1705588242434,-200.0,0.00031555,15]
[312058101,1705588242445,-200.0,0.00031555,15]
[312058102,1705588242456,-275.0,0.00031555,15]
[312058103,1705588242467,-202.690515,0.00031781,2]
[312058104,1705588242477,-245.30014,0.00031781,2]
[312058105,1705588242487,-212.40088607,0.00031997,4]
[312058106,1705588242497,-301.0,0.00032,2]
[312058107,1705588242507,-3279.57264357,0.00032,45]
[312058108,1705588242518,-261.25001753,0.00032228,2]
[312058109,1705588242528,-471.33694125,0.00032499,2]
[312058110,1705588242537,-500.0,0.00032499,4]
[312058111,1705588242548,-500.0,0.00032499,4]
[312058112,1705588242560,-500.0,0.00032499,4]
[312058113,1705588242570,-500.0,0.00032499,4]
[312058114,1705588242580,-500.0,0.00032499,4]
[312058115,1705588242590,-500.0,0.00032499,4]
[312058116,1705588242600,-500.0,0.00032499,4]
[312058117,1705588242610,-500.0,0.00032499,4]
[312058118,1705588242619,-500.0,0.00032499,4]
[312058119,1705588242628,-188.89149845,0.00032499,4]
[312058120,1705588242639,-635.98191819,0.00032499,4]
[312058121,1705588242649,-236.4860795,0.00032499,4]
[312058122,1705588242658,-500.0,0.00032499,4]
[312058123,1705588242668,-500.0,0.00032499,4]
[312058124,1705588242682,-500.0,0.00032499,4]
[312058125,1705588242692,-500.0,0.00032499,4]
[312058126,1705588242702,-500.0,0.00032499,4]
[312058127,1705588242711,-500.0,0.00032499,4]
[312058128,1705588242721,-500.0,0.00032499,4]
[312058129,1705588242791,-500.0,0.00032499,4]
[312058130,1705588242801,-500.0,0.00032499,4]
[312058131,1705588242811,-500.0,0.00032499,4]
[312058132,1705588242820,-500.0,0.00032499,4]
[312058133,1705588242830,-500.0,0.00032499,4]
[312058134,1705588242840,-500.0,0.00032499,4]
[312058135,1705588242849,-500.0,0.00032499,4]
[312058136,1705588242858,-645.25325161,0.00032499,4]
[312058137,1705588242868,-500.0,0.00032499,4]
[312058138,1705588242878,-500.0,0.00032499,4]
[312058139,1705588242887,-433.43080354,0.00032499,4]
[312058140,1705588242897,-500.0,0.00032499,4]
[312058141,1705588242906,-500.0,0.00032499,4]
[312058142,1705588242916,-500.0,0.00032499,4]
[312058143,1705588242927,-500.0,0.00032499,4]
[312058144,1705588242938,-500.0,0.00032499,4]
[312058145,1705588242948,-500.0,0.00032499,4]
[312058146,1705588242958,-500.0,0.00032499,4]
[312058147,1705588242972,-500.0,0.00032499,4]
[312058148,1705588242981,-500.0,0.00032499,4]
[312058149,1705588242990,-500.0,0.00032499,4]
[312058150,1705588243000,-492.71593987,0.00032499,4]
[312058151,1705588243010,-500.0,0.00032499,4]
[312058152,1705588243019,-500.0,0.00032499,4]
[312058153,1705588243029,-500.0,0.00032499,4]
[312058154,1705588243038,-500.0,0.00032499,4]
[312058155,1705588243050,-500.0,0.00032499,4]
[312058156,1705588243059,-270637.44144015,0.000325,20]
[312058157,1705588243068,-202.690515,0.00032603,2]
[312058158,1705588243077,-245.30014,0.00032603,2]
[312058159,1705588243086,-1265.92,0.00032876,2]
[312058160,1705588243095,-161.316108,0.00032876,7]
[312058161,1705588243105,-500.0,0.00032876,7]
[312058162,1705588243114,-500.0,0.00032876,7]
[312058163,1705588243123,-500.0,0.00032876,7]
[312058164,1705588243133,-500.0,0.00032876,7]
[312058165,1705588243142,-500.0,0.00032876,7]
[312058166,1705588243151,-500.0,0.00032876,7]
[312058167,1705588243161,-330.93888061,0.00032876,7]
[312058168,1705588243171,-500.0,0.00032876,7]
[312058169,1705588243182,-500.0,0.00032876,7]
[312058170,1705588243191,-500.0,0.00032876,7]
[312058171,1705588243200,-500.0,0.00032876,7]
[312058172,1705588243209,-500.0,0.00032876,7]
[312058173,1705588243219,-500.0,0.00032876,7]
[312058175,1705588243229,-500.0,0.00032876,7]
[312058176,1705588243239,-500.0,0.00032876,7]
[312058177,1705588243247,-500.0,0.00032876,7]
[312058178,1705588243256,-500.0,0.00032876,7]
[312058179,1705588243265,-500.0,0.00032876,7]
[312058180,1705588243274,-500.0,0.00032876,7]
[312058182,1705588243284,-500.0,0.00032876,7]
[312058184,1705588243293,-364.817158,0.00032876,7]
[312058185,1705588243302,-500.0,0.00032876,7]
[312058186,1705588243312,-500.0,0.00032876,7]
[312058187,1705588243321,-500.0,0.00032876,7]
[312058189,1705588243330,-500.0,0.00032876,7]
[312058190,1705588243339,-500.0,0.00032876,7]
[312058192,1705588243348,-500.0,0.00032876,7]
[312058194,1705588243358,-500.0,0.00032876,7]
[312058195,1705588243367,-500.0,0.00032876,7]
[312058196,1705588243376,-500.0,0.00032876,7]
[312058197,1705588243385,-500.0,0.00032876,7]
[312058199,1705588243395,-500.0,0.00032876,7]
[312058200,1705588243404,-500.0,0.00032876,7]
[312058201,1705588243414,-500.0,0.00032876,7]
[312058202,1705588243423,-500.0,0.00032876,7]
[312058203,1705588243434,-500.0,0.00032876,7]
[312058204,1705588243443,-500.0,0.00032876,7]
[312058205,1705588243452,-184.094376,0.00032877,2]
[312058206,1705588243461,-184.094376,0.00032877,120]
[312058207,1705588243470,-486.205789,0.00032947,2]
[312058208,1705588243479,-487.849424,0.00032947,2]
[312058209,1705588243489,-487.849424,0.00032947,2]
[312058210,1705588243500,-171.793113,0.00032947,2]
[312058212,1705588243509,-165.17593,0.00032947,2]
[312058214,1705588243518,-279.26835,0.00032947,2]
[312058216,1705588243527,-174.385649,0.00032947,2]
[312058217,1705588243536,-386.32476631,0.00033,2]
[312058218,1705588243546,-196.0,0.00033,2]
[312058219,1705588243556,-351.0,0.00033,2]
[312058220,1705588243565,-170.0,0.00033,2]
[312058221,1705588243575,-1265.92,0.0003315,2]
[312058222,1705588243585,-351.0,0.00033151,2]
[312058223,1705588243594,-487.849424,0.00033359,2]
[312058224,1705588243604,-486.205789,0.00033359,2]
[312058225,1705588243613,-487.849424,0.00033359,2]
[312058226,1705588243622,-279.26835,0.00033359,2]
[312058227,1705588243631,-174.385649,0.00033359,2]
[312058228,1705588243641,-1265.92,0.00033424,2]
[312058229,1705588243651,-202.690515,0.00033425,2]
[312058230,1705588243660,-245.30014,0.00033425,2]
[312058231,1705588243669,-171.793113,0.00033496,2]
[312058232,1705588243680,-1265.92,0.00033698,2]
[312058233,1705588243689,-487.849424,0.0003377,2]
[312058234,1705588243698,-486.205789,0.0003377,2]
[312058235,1705588243707,-487.849424,0.0003377,2]
[312058237,1705588243716,-279.26835,0.0003377,2]
[312058242,1705588243773,-174.385649,0.0003377,2]
[312058243,1705588243786,-261.25001753,0.00033872,2]
[312058244,1705588243795,-141883.26686927,0.00033879,2]
[312058245,1705588243803,-1265.92,0.00033972,2]
[312058246,1705588243812,-1000.0,0.00034,7]
[312058247,1705588243822,-171.793113,0.00034045,2]
[312058248,1705588243830,-487.849424,0.00034182,2]
[312058249,1705588243840,-486.205789,0.00034182,2]
[312058250,1705588243849,-487.849424,0.00034182,2]
[312058251,1705588243857,-279.26835,0.00034182,2]
[312058252,1705588243866,-174.385649,0.00034182,2]
[312058253,1705588243876,-1265.92,0.00034246,2]
[312058254,1705588243885,-202.690515,0.00034247,2]
[312058255,1705588243894,-245.30014,0.00034247,2]
[312058256,1705588243903,-500.0,0.00034499,7]
[312058257,1705588243913,-500.0,0.00034499,7]
[312058258,1705588243922,-500.0,0.00034499,7]
[312058259,1705588243933,-500.0,0.00034499,7]
[312058260,1705588243943,-441.8916477,0.00034499,7]
[312058261,1705588243952,-500.0,0.00034499,7]
[312058262,1705588243962,-450.07310266,0.00034499,7]
[312058263,1705588243972,-516.66862384,0.00034499,7]
[312058264,1705588243982,-500.0,0.00034499,7]
[312058265,1705588243991,-500.0,0.00034499,7]
[312058266,1705588244000,-500.0,0.00034499,7]
[312058267,1705588244010,-500.0,0.00034499,7]
[312058268,1705588244019,-500.0,0.00034499,7]
[312058269,1705588244029,-500.0,0.00034499,7]
[312058270,1705588244038,-500.0,0.00034499,7]
[312058271,1705588244047,-483.93993871,0.00034499,7]
[312058272,1705588244058,-500.0,0.00034499,7]
[312058273,1705588244068,-500.0,0.00034499,7]
[312058274,1705588244077,-500.0,0.00034499,7]
[312058275,1705588244086,-500.0,0.00034499,7]
[312058276,1705588244095,-500.0,0.00034499,7]
[312058277,1705588244104,-500.0,0.00034499,7]
[312058278,1705588244114,-500.0,0.00034499,7]
[312058279,1705588244123,-601.98643864,0.00034499,7]
[312058280,1705588244132,-500.0,0.00034499,7]
[312058281,1705588244143,-500.0,0.00034499,7]
[312058282,1705588244154,-500.0,0.00034499,7]
[312058283,1705588244164,-500.0,0.00034499,7]
[312058284,1705588244173,-500.0,0.00034499,7]
[312058285,1705588244185,-369.5369549,0.00034499,7]
[312058286,1705588244194,-500.0,0.00034499,7]
[312058287,1705588244204,-500.0,0.00034499,7]
[312058288,1705588244213,-500.0,0.00034499,7]
[312058289,1705588244224,-500.0,0.00034499,7]
[312058290,1705588244234,-10799.91264334,0.000345,7]
[312058291,1705588244243,-1265.92,0.0003452,2]
[312058292,1705588244254,-351.0,0.00034521,2]
[312058293,1705588244264,-171.0,0.00034521,2]
[312058294,1705588244274,-487.849424,0.00034594,2]
[312058295,1705588244283,-486.205789,0.00034594,2]
[312058296,1705588244292,-487.849424,0.00034594,2]
[312058297,1705588244301,-279.26835,0.00034594,2]
[312058298,1705588244311,-174.385649,0.00034594,2]
[312058299,1705588244320,-171.793113,0.00034594,2]
[312058300,1705588244330,-200.0,0.00034711,15]
[312058301,1705588244339,-200.0,0.00034711,15]
[312058302,1705588244349,-200.0,0.00034711,15]
[312058303,1705588244357,-200.0,0.00034711,15]
[312058304,1705588244367,-200.0,0.00034711,15]
[312058305,1705588244377,-200.0,0.00034711,15]
[312058306,1705588244386,-305.0,0.00034711,15]
[312058307,1705588244396,-1265.92,0.00034794,2]
[312058308,1705588244404,-921.177115,0.000348,3]
[312058309,1705588244413,-242.743,0.00034848,2]
[312058310,1705588244422,-182.89274821,0.0003496,7]
[312058311,1705588244433,-322.0,0.0003496,30]
[312058312,1705588244442,-322.0,0.0003497,30]
[312058313,1705588244451,-322.0,0.0003498,30]
[312058314,1705588244459,-194.92607775,0.00034983,7]
[312058315,1705588244469,-1600.0,0.0003499,6]
[312058316,1705588244479,-1104.18339118,0.00035,14]
[312058317,1705588244489,-2456.30202796,0.00035,15]
[312058318,1705588244498,-845.27485417,0.00035,2]
[312058319,1705588244509,-11157.84737616,0.00035,4]
[312058320,1705588244519,-475.72668137,0.00035,4]
[312058321,1705588244530,-6760.97413379,0.00035,4]
[312058322,1705588244540,-3078.13460206,0.00035,4]
[312058323,1705588244550,-154.98450155,0.00035,4]
[312058324,1705588244559,-251.0,0.00035,2]
[312058325,1705588244568,-3850.000001,0.00035,17]
[312058326,1705588244577,-154.98450155,0.00035,4]
[312058327,1705588244586,-75851.36457803,0.00035,15]
[312058328,1705588244596,-157.79212316,0.00035,2]
[312058329,1705588244606,-2354.33535012,0.00035,2]
[312058330,1705588244616,-156.26613286,0.00035,6]
[312058331,1705588244625,-1004.53357033,0.00035,7]
[312058332,1705588244634,-155.38966053,0.00035,4]
[312058333,1705588244696,-150.0,0.00035,8]
[312058334,1705588244705,-1265.92,0.00035068,2]
[312058335,1705588244715,-202.690515,0.00035068,2]
[312058336,1705588244724,-245.30014,0.00035068,2]
[312058337,1705588244733,-194.92607775,0.00035119,7]
[312058338,1705588244743,-154.81467578,0.00035146,7]
[312058339,1705588244752,-182.89274821,0.00035242,7]
[312058340,1705588244761,-182.89274821,0.00035282,7]
[312058341,1705588244770,-151.0,0.00035285,4]
[312058342,1705588244780,-1265.92,0.00035342,2]
[312058343,1705588244789,-182.89274821,0.00035396,7]
[312058344,1705588244798,-21153.91087553,0.00035401,2]
[312058345,1705588244807,-182.89274821,0.00035447,7]
[312058346,1705588244816,-194.92607775,0.00035462,7]
[312058347,1705588244825,-194.92607775,0.00035504,7]
[312058348,1705588244834,-182.89274821,0.00035534,7]
[312058349,1705588244843,-151.0,0.0003557,4]
[312058350,1705588244852,-194.92607775,0.00035596,7]
[312058351,1705588244861,-194.92607775,0.00035608,7]
[312058352,1705588244870,-500.0,0.00035616,2]
[312058353,1705588244880,-500.0,0.00035616,2]
[312058354,1705588244890,-500.0,0.00035616,2]
[312058355,1705588244899,-500.0,0.00035616,2]
[312058356,1705588244909,-500.0,0.00035616,2]
[312058357,1705588244918,-500.0,0.00035616,2]
[312058358,1705588244927,-500.0,0.00035616,2]
[312058359,1705588244936,-500.0,0.00035616,2]
[312058360,1705588244945,-500.0,0.00035616,2]
[312058361,1705588244954,-500.0,0.00035616,2]
[312058362,1705588244964,-500.0,0.00035616,2]
[312058363,1705588244975,-500.0,0.00035616,2]
[312058364,1705588244985,-500.0,0.00035616,2]
[312058365,1705588244994,-500.0,0.00035616,2]
[312058366,1705588245004,-500.0,0.00035616,2]
[312058367,1705588245014,-500.0,0.00035616,2]
[312058368,1705588245025,-265.24894371,0.00035616,2]
[312058369,1705588245035,-631.69416237,0.00035616,2]
[312058370,1705588245045,-150.95004265,0.00035616,7]
[312058371,1705588245055,-1265.92,0.00035616,2]
[312058372,1705588245066,-1612.398478,0.00035616,120]
[312058373,1705588245077,-182.89274821,0.00035666,7]
[312058374,1705588245086,-3343.45086557,0.000357,2]
[312058375,1705588245103,-182.89274821,0.00035717,7]
[312058376,1705588245124,-194.92607775,0.00035729,7]
[312058377,1705588245142,-500.0,0.000358,3]
[312058378,1705588245163,-1500.0,0.000358,2]
[312058379,1705588245180,-151.0,0.00035855,4]
[312058380,1705588245198,-1265.92,0.0003589,2]
[312058381,1705588245215,-202.690515,0.0003589,2]
[312058382,1705588245230,-245.30014,0.0003589,2]
[312058383,1705588245251,-182.89274821,0.00035922,7]
[312058384,1705588245266,-194.92607775,0.00035943,7]
[312058385,1705588245283,-182.89274821,0.00035959,7]
[312058386,1705588245303,-182.89274821,0.00035996,7]
[312058387,1705588245319,-10000.0,0.00036,60]
[312058388,1705588245331,-182.89274821,0.00036041,7]
[312058389,1705588245348,-154.81467578,0.00036067,7]
[312058390,1705588245364,-194.92607775,0.00036081,7]
[312058391,1705588245377,-151.0,0.00036141,4]
[312058392,1705588245391,-1265.92,0.00036164,2]
[312058393,1705588245404,-194.92607775,0.00036172,7]
[312058394,1705588245418,-194.92607775,0.00036206,7]
[312058395,1705588245432,-358.0,0.00036247,2]
[312058396,1705588245445,-194.92607775,0.00036249,7]
[312058397,1705588245459,-165.90071,0.00036301,2]
[312058398,1705588245473,-194.92607775,0.00036358,7]
[312058399,1705588245487,-151.0,0.00036426,4]
[312058400,1705588245501,-1265.92,0.00036438,2]
[312058401,1705588245515,-10000.0,0.000365,60]
[312058402,1705588245529,-1805.0,0.000365,60]
[312058403,1705588245542,-194.92607775,0.00036565,7]
[312058404,1705588245556,-428.744075,0.00036575,4]
[312058405,1705588245570,-151.0,0.00036712,4]
[312058406,1705588245585,-1265.92,0.00036712,2]
[312058407,1705588245599,-202.690515,0.00036712,2]
[312058408,1705588245612,-245.30014,0.00036712,2]
[312058409,1705588245626,-500.0,0.000368,3]
[312058410,1705588245640,-1500.0,0.000368,2]
[312058411,1705588245654,-497.89805688,0.00036858,5]
[312058412,1705588245668,-12243.87665029,0.0003686,5]
[312058413,1705588245683,-210.21085426,0.00036919,10]
[312058414,1705588245695,-194.92607775,0.00036924,7]
[312058415,1705588245704,-182.89274821,0.00036951,7]
[312058416,1705588245713,-194.92607775,0.00036959,7]
[312058417,1705588245815,-182.89274821,0.0003697,7]
[312058418,1705588245825,-1265.92,0.00036986,2]
[312058419,1705588245834,-194.92607775,0.00036995,7]
[312058420,1705588245844,-151.0,0.00036997,4]
[312058421,1705588245854,-10000.0,0.00037,60]
[312058422,1705588245863,-182.89274821,0.00037063,7]
[312058423,1705588245873,-182.89274821,0.00037108,7]
[312058424,1705588245882,-194.92607775,0.00037146,7]
[312058425,1705588245892,-182.89274821,0.0003725,7]
[312058426,1705588245901,-1265.92,0.0003726,2]
[312058427,1705588245910,-151.0,0.00037283,4]
[312058428,1705588245919,-154.81467578,0.00037339,7]
[312058429,1705588245928,-194.92607775,0.00037432,7]
[312058430,1705588245938,-202.690515,0.00037534,2]
[312058431,1705588245947,-245.30014,0.00037534,2]
[312058432,1705588245956,-194.92607775,0.00037549,7]
[312058433,1705588245966,-151.0,0.00037568,4]
[312058434,1705588245980,-182.89274821,0.00037659,7]
[312058435,1705588245989,-500.0,0.000378,3]
[312058436,1705588245998,-1500.0,0.000378,2]
[312058437,1705588246008,-182.89274821,0.00037824,7]
[312058438,1705588246017,-151.0,0.00037854,4]
[312058439,1705588246026,-182.89274821,0.00037877,7]
[312058440,1705588246036,-182.89274821,0.00037951,7]
[312058441,1705588246045,-6367.93900444,0.00038,4]
[312058442,1705588246056,-582.46443216,0.00038,4]
[312058444,1705588246066,-3184.89020531,0.00038,7]
[312058446,1705588246075,-155.0,0.00038,2]
[312058447,1705588246085,-10000.0,0.00038,60]
[312058448,1705588246094,-151.0,0.00038139,4]
[312058449,1705588246103,-194.92607775,0.00038155,7]
[312058450,1705588246112,-200.0,0.00038182,15]
[312058452,1705588246121,-200.0,0.00038182,15]
[312058453,1705588246131,-202.690515,0.00038356,2]
[312058454,1705588246140,-245.30014,0.00038356,2]
[312058455,1705588246149,-194.92607775,0.00038364,7]
[312058456,1705588246158,-182.89274821,0.00038419,7]
[312058457,1705588246167,-151.0,0.00038425,4]
[312058458,1705588246176,-2137.88596785,0.000385,4]
[312058460,1705588246187,-182.89274821,0.00038534,7]
[312058462,1705588246196,-11226.75463028,0.000386,12]
[312058464,1705588246205,-194.92607775,0.00038617,7]
[312058466,1705588246215,-182.89274821,0.00038626,7]
[312058468,1705588246234,-351.0,0.00038663,14]
[312058471,1705588246252,-5000.0,0.00038704,7]
[312058473,1705588246271,-5000.0,0.00038707,7]
[312058476,1705588246292,-151.0,0.0003871,4]
[312058480,1705588246315,-182.89274821,0.00038711,7]
[312058483,1705588246336,-194.92607775,0.00038728,7]
[312058487,1705588246358,-1273.45080855,0.00038788,2]
[312058492,1705588246379,-157.67929276,0.00038796,4]
[312058496,1705588246400,-575.39211952,0.00038796,3]
[312058500,1705588246418,-251.05617524,0.00038798,2]
[312058505,1705588246427,-1091.93690578,0.00038798,4]
[312058506,1705588246438,-261.85890869,0.00038798,4]
[312058509,1705588246447,-15195.58015327,0.00038798,4]
[312058511,1705588246456,-155.2676003,0.00038798,4]
[312058513,1705588246466,-634.49129462,0.00038798,4]
[312058514,1705588246475,-686.49960965,0.00038798,4]
[312058515,1705588246484,-178.6090388,0.00038798,4]
[312058516,1705588246493,-466.88440498,0.00038798,4]
[312058517,1705588246503,-875.01165605,0.00038798,4]
[312058518,1705588246512,-166.70935578,0.00038798,4]
[312058519,1705588246521,-211.03608739,0.00038798,4]
[312058520,1705588246530,-387.23790919,0.00038798,4]
[312058521,1705588246539,-155.04961588,0.00038798,4]
[312058522,1705588246549,-902.06325621,0.00038798,4]
[312058523,1705588246558,-238.31627781,0.00038798,4]
[312058524,1705588246568,-563.33668439,0.00038798,2]
[312058525,1705588246577,-1104.7734153,0.00038799,4]
[312058526,1705588246586,-356426.40576199,0.000388,12]
[312058527,1705588246596,-650.89335401,0.000388,4]
[312058528,1705588246605,-283.01176432,0.000388,3]
[312058529,1705588246614,-410.41281499,0.000388,4]
[312058530,1705588246623,-195.1690538,0.000388,4]
[312058531,1705588246632,-154.98450155,0.000388,4]
[312058532,1705588246642,-351.14579978,0.000388,7]
[312058533,1705588246650,-4319.3054765,0.000388,4]
[312058534,1705588246659,-154.98450155,0.000388,7]
[312058535,1705588246668,-431.47408337,0.000388,4]
[312058536,1705588246678,-58485.98011671,0.000388,30]
[312058537,1705588246688,-1154.97437813,0.000388,2]
[312058538,1705588246697,-500.0,0.000388,3]
[312058539,1705588246706,-1500.0,0.000388,2]
[312058540,1705588246715,-245.009401,0.000388,13]
[312058541,1705588246724,-245.009401,0.000388,13]
[312058542,1705588246733,-151.0,0.000388,2]
[312058543,1705588246742,-151.0,0.000388,2]
[312058544,1705588246751,-9054.62383985,0.00038807,7]
[312058546,1705588246760,-50000.0,0.00038869,7]
[312058547,1705588246770,-322.0,0.0003888,30]
[312058549,1705588246778,-322.0,0.0003889,30]
[312058551,1705588246788,-10000.0,0.000389,60]
[312058552,1705588246797,-151.0,0.00038996,4]
[312058554,1705588246806,-5499.99999004,0.00039,2]
[312058556,1705588246815,-1000.0,0.00039,39]
[312058557,1705588246825,-194.92607775,0.00039031,7]
[312058558,1705588246834,-154.8146758,0.00039089,7]
[312058559,1705588246843,-182.89274821,0.00039121,7]
[312058560,1705588246852,-182.89274821,0.00039152,7]
[312058561,1705588246861,-207.983961,0.00039178,2]
[312058562,1705588246871,-202.690515,0.00039178,2]
[312058563,1705588246880,-245.30014,0.00039178,2]
[312058564,1705588246889,-194.92607775,0.00039184,7]
[312058565,1705588246898,-194.92607775,0.00039246,7]
[312058566,1705588246908,-151.0,0.00039281,4]
[312058567,1705588246917,-194.92607775,0.00039346,7]
[312058568,1705588246926,-155.0,0.0003937,2]
[312058569,1705588246937,-182.89274821,0.00039415,7]
[312058570,1705588246946,-17957.6498,0.00039441,7]
[312058571,1705588246955,-194.92607775,0.00039447,7]
[312058572,1705588246965,-182.89274821,0.00039479,7]
[312058573,1705588246979,-182.89274822,0.00039489,7]
[312058574,1705588246988,-151.0,0.00039567,4]
[312058575,1705588246997,-249.85240549,0.000396,30]
[312058576,1705588247007,-194.92607787,0.00039684,7]
[312058577,1705588247016,-411.45892831,0.0003973,14]
[312058578,1705588247025,-411.45892831,0.0003973,14]
[312058579,1705588247034,-411.45892831,0.0003973,14]
[312058580,1705588247043,-411.45892831,0.0003973,14]
[312058581,1705588247054,-411.45892831,0.0003973,14]
[312058582,1705588247064,-411.45892831,0.0003973,14]
[312058583,1705588247073,-411.45892831,0.0003973,14]
[312058584,1705588247083,-411.45892831,0.0003973,14]
[312058585,1705588247092,-411.45892831,0.0003973,14]
[312058586,1705588247101,-411.45892831,0.0003973,14]
[312058587,1705588247110,-411.45892831,0.0003973,14]
[312058588,1705588247119,-411.45892831,0.0003973,14]
[312058589,1705588247128,-411.45892831,0.0003973,14]
[312058590,1705588247137,-411.45892831,0.0003973,14]
[312058591,1705588247146,-411.45892831,0.0003973,14]
[312058592,1705588247155,-411.45892831,0.0003973,14]
[312058593,1705588247164,-411.45892831,0.0003973,14]
[312058594,1705588247173,-411.45892831,0.0003973,14]
[312058595,1705588247182,-411.45892831,0.0003973,14]
[312058596,1705588247191,-411.45,0.0003973,14]
[312058597,1705588247200,-1645.83571323,0.0003973,14]
[312058598,1705588247211,-1645.83571323,0.0003973,14]
[312058599,1705588247220,-1645.83571323,0.0003973,14]
[312058601,1705588247229,-1645.83571323,0.0003973,14]
[312058603,1705588247238,-1645.83571323,0.0003973,14]
[312058605,1705588247247,-1645.83571323,0.0003973,14]
[312058614,1705588247319,-1645.83571323,0.0003973,14]
[312058616,1705588247329,-1645.83571323,0.0003973,14]
[312058618,1705588247338,-1645.83571323,0.0003973,14]
[312058620,1705588247347,-1645.83571323,0.0003973,14]
[312058622,1705588247356,-1645.83571323,0.0003973,14]
[312058624,1705588247365,-1645.83571323,0.0003973,14]
[312058625,1705588247374,-1645.83571323,0.0003973,14]
[312058626,1705588247383,-1645.83571323,0.0003973,14]
[312058627,1705588247392,-1645.83571323,0.0003973,14]
[312058628,1705588247401,-1645.83571323,0.0003973,14]
[312058629,1705588247410,-1645.83571323,0.0003973,14]
[312058630,1705588247419,-1645.83571323,0.0003973,14]
[312058631,1705588247428,-1645.83571323,0.0003973,14]
[312058632,1705588247438,-1645.83,0.0003973,14]
[312058633,1705588247447,-150.30083188,0.0003973,14]
[312058634,1705588247456,-150.30083188,0.0003973,14]
[312058635,1705588247465,-150.30083188,0.0003973,14]
[312058636,1705588247474,-150.3,0.0003973,14]
[312058637,1705588247483,-150.30083188,0.0003973,14]
[312058638,1705588247492,-150.30083188,0.0003973,14]
[312058639,1705588247501,-150.30083188,0.0003973,14]
[312058640,1705588247510,-150.30083188,0.0003973,14]
[312058641,1705588247519,-150.30083188,0.0003973,14]
[312058642,1705588247528,-150.30083188,0.0003973,14]
[312058643,1705588247537,-150.30083188,0.0003973,14]
[312058644,1705588247546,-150.30083188,0.0003973,14]
[312058645,1705588247554,-150.30083188,0.0003973,14]
[312058646,1705588247563,-150.30083188,0.0003973,14]
[312058647,1705588247572,-150.30083188,0.0003973,14]
[312058648,1705588247581,-150.30083188,0.0003973,14]
[312058649,1705588247590,-150.30083188,0.0003973,14]
[312058650,1705588247599,-150.30083188,0.0003973,14]
[312058651,1705588247609,-150.30083188,0.0003973,14]
[312058652,1705588247618,-150.3,0.0003973,14]
[312058653,1705588247628,-181.66666667,0.0003973,14]
[312058654,1705588247637,-181.66666667,0.0003973,14]
[312058655,1705588247647,-181.66,0.0003973,14]
[312058656,1705588247656,-199.14077369,0.0003973,14]
[312058657,1705588247665,-199.14077369,0.0003973,14]
[312058658,1705588247674,-199.14,0.0003973,14]
[312058659,1705588247685,-5000.0,0.00039793,4]
[312058660,1705588247694,-151.0,0.00039852,4]
[312058661,1705588247703,-35723.09059845,0.0003991,3]
[312058662,1705588247712,-151.0,0.0003991,2]
[312058663,1705588247722,-5767.6855528,0.0003999,4]
[312058664,1705588247731,-500.0,0.0004,10]